[Event "USA Championship Women 2022"]
[Site "Saint Louis"]
[Date "2022.10.09"]
[Round "5.5"]
[White "Lee, Megan"]
[Black "Abrahamyan, Tatev"]
[Result "1/2-1/2"]
[ECO "C16"]
[WhiteElo "2226"]
[BlackElo "2308"]
[Annotator "TA"]
[PlyCount "62"]
[EventDate "2022.09.05"]
[EventType "tourn"]
[EventCountry "USA"]
[SourceTitle "playchess.com"]
[Source "ChessBase"]
[SourceQuality "1"]
[TimeControl "40/5400+30:1800+30"]

{[%evp 21,62,65,66,47,64,60,59,10,37,0,-4,-25,-19,-70,-66,-56,-54,-68,-31,-122,-114,-129,-128,-134,-142,-122,0,0,0,0,0,0,0,0,0,0,0,0,0,0,0,0,0]} 1. e4 {[%emt 0:00:03]} e6 {[%emt 0:00:05]} 2. d4 {[%emt 0:00:06]} d5 {[%emt 0:00:03]} 3. Nc3 {[%emt 0:00:06]} Bb4 {[%emt 0:00:05]} 4. e5 {[%emt 0:00:06]} b6 {[%emt 0:00:16]} 5. a3 {[%emt 0:06:58]} Bxc3+ {[%emt 0:00:24]} 6. bxc3 {[%emt 0:00:02]} Ne7 {[%emt 0:00:05]} 7. Qg4 {[%emt 0:02:06]} Ng6 {[%emt 0:00:29]} 8. h4 {[%emt 0:07:41]} h5 {[%emt 0:00:32]} 9. Qd1 {[%emt 0:06:04]} Ba6 {[%emt 0:07:33]} 10. Bxa6 {[%emt 0:04:48]} Nxa6 {[%emt 0:00:12]} 11. Bg5 {[%emt 0:03:19]} Qd7 {[%emt 0:24:58]} 12. a4 {[%emt 0:01:32] C16: French: 3 Nc3 Bb4 4 e5: Lines without ...c5.} c5 {[%emt 0:06:26]} 13. Ne2 $1 {[%emt 0:08:36]} Rc8 {[%emt 0:19:46] [#]} 14. Rh3 $146 {[%emt 0:11:43]} (14. O-O $14 {was preferrable.}) ({Predecessor:} 14. O-O Ne7 15. Nf4 g6 16. Bf6 Rg8 17. c4 dxc4 18. Bxe7 Kxe7 19. d5 exd5 20. Nxd5+ {½-½ (31) Muzychuk,A (2561)-Ovod,E (2375) Novi Sad 2016}) 14... Qc7 {[%emt 0:04:00]} 15. Qd3 {[%emt 0:03:11]} Nb8 {[%emt 0:02:17][%cal Ba6b8,Bb8c6,Bc6a5,Ba5c4][%mdl 32]} 16. Kd1 {[%emt 0:11:33]} Nc6 {[%emt 0:03:25]} 17. Rb1 {[%emt 0:04:50]} (17. Ke1 $11) 17... Na5 {[%emt 0:03:54]} 18. Rg3 {[%emt 0:10:32]} Qd7 {[%emt 0:07:04]} 19. Ra1 {[%emt 0:05:35]} Nc4 {[%emt 0:04:50] Hoping for ...Nb2+. Pair of Knights!} 20. Bc1 {[%emt 0:00:23] Against Nb2+} (20. Ke1 $1 $15) 20... Qe7 $1 $17 {[%emt 0:06:17]} ({Worse is} 20... Nxh4 21. Rxg7 Nf5 22. Rg5 $15) 21. Rxg6 {[%emt 0:04:17]} fxg6 {[%emt 0:00:49]} 22. Nf4 {[%emt 0:02:56]} Qf7 {[%emt 0:02:51][%cal Og6g5]} 23. Nxg6 {[%emt 0:02:28] [#]} Qxf2 {[%emt 0:03:50]} 24. Nxh8 $11 {[%emt 0:00:48] Qf3 is the strong threat. The board is on fire. The position is equal.} Qg1+ {[%emt 0:00:56]} 25. Ke2 {[%emt 0:00:01]} Qxg2+ {[%emt 0:00:05]} 26. Ke1 {[%emt 0:00:20] Strongly threatening Qg6+.} Kd7 {[%emt 0:00:10] ( -> ...Rf8)} 27. Ng6 {[%emt 0:02:58] Against Rf8} Qg1+ {[%emt 0:00:43]} 28. Ke2 {[%emt 0:00:17]} Qg2+ {[%emt 0:00:21]} 29. Ke1 {[%emt 0:00:01]} Qg1+ {[%emt 0:00:13]} 30. Ke2 {[%emt 0:00:06]} Qg2+ {[%emt 0:00:03]} 31. Ke1 {[%emt 0:00:59]} Qg1+ {[%emt 0:00:07] Weighted Error Value: White=0.18 (very precise) /Black=0.10 (very precise)} 1/2-1/2

[Event "USA Championship Women 2022"]
[Site "Saint Louis"]
[Date "2022.10.09"]
[Round "5.6"]
[White "Cervantes Landeiro, Thalia"]
[Black "Paikidze, Nazi"]
[Result "1/2-1/2"]
[ECO "E11"]
[WhiteElo "2272"]
[BlackElo "2354"]
[Annotator "TA"]
[PlyCount "132"]
[EventDate "2022.09.05"]
[EventType "tourn"]
[EventCountry "USA"]
[SourceTitle "playchess.com"]
[Source "ChessBase"]
[SourceQuality "1"]
[TimeControl "40/5400+30:1800+30"]

{[%evp 10,132,18,25,47,13,45,20,34,24,46,34,37,34,31,8,11,0,0,0,23,34,31,-35,-58,-60,-33,-29,-26,-35,0,0,57,46,55,54,201,-34,-43,-51,-42,-35,10,21,85,12,14,0,0,2,2,2,4,2,1,6,14,14,14,14,112,112,112,112,112,99,111,111,111,111,121,104,191,191,498,498,481,459,683,687,552,674,685,677,593,568,583,568,568,561,561,554,546,532,525,525,525,525,517,503,517,502,495,481,477,447,470,0,450,0,437,0,429,429,429,420,414,413,406,0,381,0,333,0,210]} 1. d4 {[%emt 0:00:03]} Nf6 {[%emt 0:00:04]} 2. c4 {[%emt 0:00:07]} e6 {[%emt 0:00:04]} 3. Nf3 {[%emt 0:00:07]} Bb4+ {[%emt 0:00:06]} 4. Nbd2 {[%emt 0:00:09]} O-O {[%emt 0:00:10]} 5. a3 {[%emt 0:00:13]} Be7 {[%emt 0:00:12]} 6. e4 {[%emt 0:02:15]} d6 {[%emt 0:00:06][%cal Oe6e5] E11: Bogo-Indian.} 7. Bd3 {[%emt 0:02:28]} Nbd7 {[%emt 0:00:48]} (7... e5 $5) 8. b4 {[%emt 0:05:36]} e5 {[%emt 0:04:40]} 9. O-O {[%emt 0:06:06]} exd4 {[%emt 0:06:19]} 10. Nxd4 {[%emt 0:00:15]} a5 {[%emt 0:00:21]} 11. Bb2 {[%emt 0:12:23]} Re8 {[%emt 0:05:06]} 12. Nf5 {[%emt 0:07:26]} Bf8 {[%emt 0:00:43]} 13. f4 {[%emt 0:03:51]} g6 {[%emt 0:03:56]} 14. Ne3 {[%emt 0:04:41]} Bg7 {[%emt 0:01:37][%cal Of6g4] [#]} 15. Qb3 $146 {[%emt 0:04:46]} ({Predecessor:} 15. Qc2 c6 16. Nb3 axb4 17. axb4 Rxa1 18. Bxa1 Nf8 19. Kh1 Ne6 20. c5 dxc5 21. bxc5 {½-½ (52) Murtazin,B (2342)-Maletin,P (2587) Sochi 2015}) 15... b6 {[%emt 0:06:34]} 16. c5 {[%emt 0:06:10]} ({White should try} 16. Rae1 $14) 16... a4 {[%emt 0:07:14]} 17. Qa2 {[%emt 0:03:40]} bxc5 {[%emt 0:02:51]} 18. Bc4 {[%emt 0:00:35]} Re7 {[%emt 0:11:09] next ...cxb4 is good for Black.} 19. bxc5 {[%emt 0:16:54]} Bb7 {[%emt 0:01:09]} (19... Nxe4 20. Bxg7 Kxg7 21. Nd5 $11) (19... Rb8 $5 {[%cal Rb8b2]} 20. Rab1 Nxe4 21. Bxg7 Rxb1 22. Rxb1 Kxg7 $11) 20. Rad1 {[%emt 0:04:04][%cal Oc5c6]} Nxc5 {[%emt 0:11:37]} (20... Qf8 $11) 21. e5 $14 {[%emt 0:02:39]} Nfd7 {[%emt 0:07:48]} 22. f5 {[%emt 0:00:41]} Bxe5 {[%emt 0:09:43] [#]} (22... Nxe5 23. f6 Bxf6 24. Rxf6 $16) (22... Rxe5 $14 23. f6 Bxf6) 23. f6 $2 {[%emt 0:06:49] [#]} (23. fxg6 $6 hxg6 24. Bxf7+ Kg7 $16) ({White should play} 23. Bxf7+ $1 $18 {[%mdl 512]} Kg7 24. fxg6 hxg6 25. Ndc4 $1) 23... Re6 $1 $15 {[%emt 0:04:47]} 24. Bxe6 {[%emt 0:01:31]} Nxe6 {[%emt 0:00:07]} 25. Ng4 {[%emt 0:00:37]} Ba6 {[%emt 0:02:04] This bishop pair is nice.} 26. Rfe1 {[%emt 0:02:17]} h5 {[%emt 0:01:05]} (26... Nxf6 $2 27. Nh6+ (27. Nxe5 dxe5 28. Nc4 Qb8 $16) 27... Kf8 28. Nxf7 $1 {[%mdl 512]} Kxf7 29. Bxe5 dxe5 30. Nf3 $18 (30. Ne4 Nd7 $11)) (26... Bxf6 $2 27. Nxf6+ Nxf6 28. Rxe6 fxe6 29. Qxe6+ Kf8 30. Bxf6 $18) (26... Bxb2 $11 {keeps the balance.} 27. Nh6+ (27. Qxb2 Ndc5 $11) 27... Kf8 28. Rxe6 fxe6 29. Qxe6 Qxf6 30. Qg8+ Ke7 31. Re1+ (31. Qxa8 $2 Qd4+ 32. Kh1 Be2 $19) 31... Ne5 32. Qxa8 Bd4+ 33. Kh1 Qf2) 27. Nh6+ {[%emt 0:02:20]} (27. Nxe5 $16 Nxe5 28. Bxe5 dxe5 29. Nf3 Qxf6 30. Nxe5) 27... Kf8 $11 {[%emt 0:00:06] Hoping for ...Qxf6.} 28. Nf3 {[%emt 0:01:39]} Qxf6 {[%emt 0:04:57]} (28... Bxf6 $2 29. Nxf7 $1 {[%mdl 512]} Kxf7 30. Ng5+ Bxg5 31. Rxe6 $18) 29. Nxe5 {[%emt 0:00:22]} Nxe5 {[%emt 0:00:25]} 30. Bxe5 {[%emt 0:00:45]} ({Of course not} 30. Qd5 Rd8 31. Qa5 Bb7 32. Bxe5 dxe5 33. Qb4+ (33. Rxd8+ Qxd8 34. Qb4+ Kg7 $15) 33... Kg7 34. Qxb7 Rxd1 35. Rxd1 Kxh6 $15) 30... dxe5 {[%emt 0:00:04]} 31. Rd7 {[%emt 0:00:09]} Nd8 {[%emt 0:00:55]} 32. Qd5 $36 {[%emt 0:02:03][%mdl 2048] Inhibits Bb5. White has good play.} Rb8 {[%emt 0:01:04] White must now prevent ...Kg7.} 33. Rd1 $1 {[%emt 0:00:54][%cal Rd7d8,Be1d1,Bd1d8,Bd8d5,Bd5e5,Be5e7,Be7a7,Ba7a6,Ba6c6][%mdl 32]} ({Reject} 33. Qxe5 Qxe5 34. Rxe5 Kg7 $17) 33... Kg7 {[%emt 0:01:53][%cal Ob8b2] And now ...Rb2! would win.} 34. Rxd8 {[%emt 0:01:11] Dancing on a razor blade.} Rxd8 {[%emt 0:01:35]} (34... Bc4 $1 $11 {remains equal.} 35. Qd2 (35. Qxc4 Rxd8 36. Rxd8 Qxd8 $15) 35... Rxd8 36. Qxd8 Qxd8 37. Rxd8 Kxh6) 35. Qxd8 $16 {[%emt 0:00:08]} Qxd8 {[%emt 0:00:29]} 36. Rxd8 {[%emt 0:00:04] Strongly threatening Ng8.} Kxh6 $11 {[%emt 0:00:03][%mdl 4096] Endgame KR-KB} 37. Rd5 {[%emt 0:00:26]} c6 {[%emt 0:04:44]} 38. Rxe5 {[%emt 0:00:12]} Bc4 {[%emt 0:00:20]} 39. Kf2 {[%emt 0:01:00][%mdl 1024] White has strong compensation.} Bd5 {[%emt 0:00:22]} 40. g3 {[%emt 0:01:07]} g5 {[%emt 0:01:35]} (40... Kg7 $16 {was worth a try.}) 41. Re7 $18 {[%emt 0:03:31]} f5 $2 {[%emt 0:08:05]} (41... Kg6 {is tougher.} 42. Ra7 Bb3) 42. Ra7 {[%emt 0:04:18]} Bb3 {[%emt 0:00:04]} 43. Ra6 {[%emt 0:01:05]} h4 {[%emt 0:01:12] [#]} (43... g4 $142 44. Rxc6+ Kg5) 44. gxh4 $1 {[%emt 0:03:24]} gxh4 {[%emt 0:00:14]} 45. Rxc6+ {[%emt 0:00:15]} Kg5 {[%emt 0:00:07]} 46. Rd6 {[%emt 0:01:19]} Kg4 {[%emt 0:02:16]} 47. Kg2 {[%emt 0:01:48]} h3+ {[%emt 0:03:11]} 48. Kf2 {[%emt 0:00:10]} f4 {[%emt 0:00:31]} 49. Rd4 {[%emt 0:04:15]} Bc2 {[%emt 0:00:14]} 50. Rd8 {[%emt 0:02:49]} Bb3 {[%emt 0:00:46]} 51. Rd7 {[%emt 0:05:57]} Bc2 {[%emt 0:01:24]} 52. Rg7+ {[%emt 0:02:04]} Kf5 {[%emt 0:00:04]} 53. Rc7 {[%emt 0:00:38]} Bb3 {[%emt 0:02:01]} 54. Rc5+ {[%emt 0:01:05]} Kg4 {[%emt 0:00:52]} 55. Ke2 {[%emt 0:00:33]} Be6 {[%emt 0:00:47]} 56. Rc3 {[%emt 0:02:16]} Bb3 {[%emt 0:01:52]} 57. Kd2 {[%emt 0:01:17]} Bf7 {[%emt 0:03:55]} 58. Ke2 {[%emt 0:01:13]} Bb3 {[%emt 0:00:09]} 59. Rc5 {[%emt 0:00:59] Against Bd5} Be6 {[%emt 0:02:50]} 60. Kf2 {[%emt 0:00:09]} Bb3 {[%emt 0:00:21]} 61. Ra5 {[%emt 0:00:16]} Bc2 {[%emt 0:00:38]} 62. Rd5 {[%emt 0:00:21]} Bb3 {[%emt 0:00:39]} 63. Rd2 {[%emt 0:00:08]} Be6 {[%emt 0:01:04]} 64. Rd6 {[%emt 0:01:27]} Bb3 {[%emt 0:00:07]} 65. Rd2 {[%emt 0:00:08]} Be6 {[%emt 0:00:04]} 66. Rd6 {[%emt 0:00:14]} Bb3 {[%emt 0:00:11] Weighted Error Value: White=0.33/Black=0.20 (precise)} 1/2-1/2

[Event "USA Championship Women 2022"]
[Site "Saint Louis"]
[Date "2022.10.09"]
[Round "5.7"]
[White "Foisor, Sabina-Francesca"]
[Black "Yu, Jennifer"]
[Result "0-1"]
[ECO "D12"]
[WhiteElo "2203"]
[BlackElo "2297"]
[Annotator "TA"]
[PlyCount "140"]
[EventDate "2022.09.05"]
[EventType "tourn"]
[EventCountry "USA"]
[SourceTitle "playchess.com"]
[Source "ChessBase"]
[SourceQuality "1"]
[TimeControl "40/5400+30:1800+30"]

{[%evp 11,140,21,32,25,35,15,16,0,21,18,5,7,43,0,0,0,0,0,0,-72,-69,-155,-144,-159,-168,-167,-52,-62,-38,-61,-41,-56,-62,-62,-58,-50,-24,-79,-45,-42,-45,-47,-47,-47,-45,-45,-45,-75,-40,-68,-66,-88,-87,-75,-52,-87,-41,-56,-34,-62,-28,-32,-9,-10,-9,-12,-8,-8,-20,-186,-55,-55,-55,-57,-46,-44,-55,-55,-19,-77,-27,-28,-28,-28,-28,-28,-8,-226,-8,-81,-81,-81,-77,-84,-68,-190,-189,-2837,-1367,-1786,-1850,-1492,-822,-2604,-2418,-4594,-1355,-4568,-4594,-2195,-1412,-3880,-2422,-29978,-29978,-29978,-29979,-29979,-29980,-29981,-29982,-29981,-29982,-29983,-29983,-29983,-29984,-29986,-29987,-29987,-29987]} 1. d4 {[%emt 0:00:03]} d5 {[%emt 0:00:13]} 2. Nf3 {[%emt 0:00:11]} Nf6 {[%emt 0:00:25]} 3. e3 {[%emt 0:00:05]} Bf5 {[%emt 0:01:19]} 4. c4 {[%emt 0:00:54]} c6 {[%emt 0:00:48]} 5. Nc3 {[%emt 0:00:06]} e6 {[%emt 0:00:18]} 6. Nh4 {[%emt 0:00:33]} Bg6 {[%emt 0:01:21]} 7. Be2 {[%emt 0:00:54] D12: Slav Defence: 3 Nf3 Nf6 4 e3 Bf5.} Be7 {[%emt 0:02:50]} 8. Nxg6 {[%emt 0:01:55]} hxg6 {[%emt 0:00:15]} 9. Qc2 {[%emt 0:01:05] The position is equal.} Qc7 {[%emt 0:01:44]} 10. g3 {[%emt 0:00:44]} Nbd7 {[%emt 0:01:00]} 11. Bd2 {[%emt 0:08:02] [#]} g5 $146 {[%emt 0:14:55]} ({Predecessor:} 11... Rd8 12. c5 e5 13. f3 Nf8 14. b4 Ne6 15. Qd3 g5 16. O-O exd4 17. exd4 Kf8 {0-1 (57) Hernandez,C (2320)-Narciso Dublan,M (2502) Linares 2020}) 12. O-O {[%emt 0:20:46]} dxc4 {[%emt 0:06:14]} 13. e4 {[%emt 0:04:37]} e5 $1 {[%emt 0:03:29]} 14. d5 {[%emt 0:07:30]} Nb6 {[%emt 0:21:38] And now ...Qd7 would win.} 15. dxc6 {[%emt 0:04:11]} (15. Bxg5 $11 Qd7 16. h4) 15... Qc8 $1 $36 {[%emt 0:08:14][%mdl 2048] Black has good play.} 16. Bf3 {[%emt 0:06:21]} (16. cxb7 Qh3 17. bxa8=Q+ Nxa8) (16. g4 $1 $15) 16... Qh3 {[%emt 0:02:12][%csl Gh8][%cal Rh3h2]} 17. Rfe1 {[%emt 0:10:18]} bxc6 {[%emt 0:10:32]} 18. Be3 {[%emt 0:10:51]} Nfd7 {[%emt 0:07:39]} ({And not} 18... g4 19. Bg2 Qxh2+ 20. Kf1 $17) ({Better is} 18... Rh6 $19 19. Ne2 Ng4 20. Bxg4 Qxg4) 19. Na4 $15 {[%emt 0:05:32]} Qxh2+ {[%emt 0:00:05]} 20. Kf1 {[%emt 0:00:01]} Qh3+ {[%emt 0:00:07]} 21. Bg2 {[%emt 0:02:43]} Qe6 {[%emt 0:00:03]} 22. Rac1 {[%emt 0:01:07]} f6 {[%emt 0:06:02]} 23. Red1 {[%emt 0:03:06]} Kf7 {[%emt 0:01:45]} 24. a3 {[%emt 0:04:09]} (24. Nxb6 $11 Nxb6 25. Qc3) 24... Nxa4 {[%emt 0:02:00]} 25. Qxa4 {[%emt 0:00:02]} Nb6 {[%emt 0:00:04]} 26. Bxb6 {[%emt 0:03:19]} axb6 {[%emt 0:00:04]} 27. Qxc4 {[%emt 0:00:03]} Qxc4+ {[%emt 0:01:40]} 28. Rxc4 {[%emt 0:00:01]} c5 {[%emt 0:02:54]} 29. Rc3 {[%emt 0:00:35]} b5 {[%emt 0:01:37]} 30. Rcd3 {[%emt 0:01:27]} g4 {[%emt 0:00:59]} 31. f3 {[%emt 0:02:01]} gxf3 {[%emt 0:00:56]} 32. Bxf3 {[%emt 0:00:12]} g6 {[%emt 0:01:00]} 33. Kg2 {[%emt 0:00:29]} b4 {[%emt 0:01:23]} (33... Rhb8 $17 34. Rd7 b4) 34. axb4 {[%emt 0:00:20]} cxb4 {[%emt 0:00:02]} 35. R1d2 {[%emt 0:01:18]} Ra1 {[%emt 0:00:08]} 36. Bd1 {[%emt 0:00:31]} f5 {[%emt 0:00:43]} 37. Rf3 {[%emt 0:01:26]} Bg5 {[%emt 0:01:25]} 38. Rd7+ {[%emt 0:00:57]} Ke6 {[%emt 0:00:32]} 39. Rfd3 {[%emt 0:00:17][%csl Gd7][%cal Rd3d6]} Be7 {[%emt 0:00:04] Prevents R3d6+.} (39... fxe4 $2 {gets mated.} 40. Bg4+ Kf6 41. R3d6#) 40. Rb7 $2 {[%emt 0:01:09]} (40. exf5+ $11 {and White is okay.} gxf5 41. g4) 40... Kf6 {[%emt 0:00:42]} (40... fxe4 $19 41. Bg4+ Kf6 42. Rb6+ Kg7) 41. Rb6+ {[%emt 0:07:28]} Kg5 {[%emt 0:00:43] Strongly threatening ...Rb1.} 42. Rb5 {[%emt 0:02:05]} Rb1 {[%emt 0:06:23]} 43. Rxe5 {[%emt 0:10:53]} Rxb2+ {[%emt 0:08:40]} 44. Kf3 {[%emt 0:00:13]} Bf6 {[%emt 0:02:21]} (44... Kf6 $5 {[%cal Rf6e5]} 45. Rb5 Rh1 46. exf5 Rf1+ 47. Ke3 Rxf5 48. Rxf5+ Kxf5 49. Rd5+ Kf6 $15) 45. Red5 {[%emt 0:03:42]} (45. Rb5 $11) 45... Bc3 {[%emt 0:03:33] Black has more active pieces.} (45... Rhh2 $17) 46. exf5 $11 {[%emt 0:02:11]} gxf5 {[%emt 0:00:06]} 47. Re3 {[%emt 0:00:33]} Rh1 {[%emt 0:03:24][%cal Rh1f1]} 48. Be2 {[%emt 0:02:03] Against Rf1+} Rh2 {[%emt 0:03:12]} 49. Rd1 {[%emt 0:03:43] Prevents Be1.} (49. Re8 $1 $11 {and White stays safe.}) 49... Bf6 $2 {[%emt 0:05:29]} (49... Bd2 $1 $19 {[%cal Rd2e3]} 50. Rd3 Bc1 $1 {[%mdl 512]} 51. Rxc1 Rbxe2) 50. Re8 {[%emt 0:01:17]} (50. Rd6 $11 {remains equal.}) 50... Rb3+ $17 {[%emt 0:00:21] Black continues to play with concentration.} 51. Re3 {[%emt 0:00:35]} Rxe3+ {[%emt 0:01:15]} 52. Kxe3 {[%emt 0:00:01][%mdl 4096] Endgame KRB-KRB} Be5 {[%emt 0:00:29] Hoping for ...b3.} 53. Rb1 {[%emt 0:00:54]} (53. Rd8 $15) 53... Bd6 $19 {[%emt 0:00:53]} 54. Kf3 $2 {[%emt 0:00:29] [#]} (54. Rd1 Bc5+ 55. Kd2) 54... Bc5 $1 {[%emt 0:00:04][%csl Gc5][%cal Rh2f2]} 55. Rf1 {[%emt 0:00:14] Prevents Rf2+.} b3 {[%emt 0:00:21] Threatens to win with ...b2.} 56. Bd3 {[%emt 0:00:49]} b2 {[%emt 0:00:55]} 57. Bb1 {[%emt 0:00:15]} Rd2 {[%emt 0:00:05]} 58. Ba2 {[%emt 0:00:37]} Bb6 {[%emt 0:01:13] White must now prevent ...Bc5.} 59. Bb1 {[%emt 0:00:22]} Bd4 {[%emt 0:00:14]} 60. Ba2 {[%emt 0:00:17]} Rd3+ {[%emt 0:00:31]} 61. Kg2 {[%emt 0:00:16]} Be5 {[%emt 0:00:12] ( -> ...Kg4)} 62. Rf3 {[%emt 0:00:37]} Rd1 {[%emt 0:00:32] Black mates.} 63. Rf1 {[%emt 0:01:22]} Rxf1 {[%emt 0:00:47]} 64. Kxf1 {[%emt 0:00:00] KB-KB} Kg4 {[%emt 0:00:07]} 65. Bb1 {[%emt 0:00:49]} Bxg3 {[%emt 0:00:06]} 66. Ke2 {[%emt 0:00:26]} f4 {[%emt 0:01:05][%cal Bf5f4,Bf4f3][%mdl 32]} 67. Ba2 {[%emt 0:01:08]} f3+ {[%emt 0:00:04]} 68. Ke3 {[%emt 0:00:30]} Bh4 {[%emt 0:00:40]} 69. Bb1 {[%emt 0:00:44]} Kg3 {[%emt 0:00:17]} 70. Be4 {[%emt 0:00:04]} Bg5+ {[%emt 0:00:13] Weighted Error Value: White=0.36/Black=0.20 (precise)} 0-1

[Event "USA Championship Women 2022"]
[Site "Saint Louis"]
[Date "2022.10.11"]
[Round "6.1"]
[White "Zatonskih, Anna"]
[Black "Tokhirjonova, Gulrukhbegim"]
[Result "1/2-1/2"]
[ECO "E36"]
[WhiteElo "2368"]
[BlackElo "2336"]
[Annotator "TA"]
[PlyCount "79"]
[EventDate "2022.09.05"]
[EventType "tourn"]
[EventCountry "USA"]
[SourceTitle "playchess.com"]
[Source "ChessBase"]
[SourceQuality "1"]
[TimeControl "40/5400+30:1800+30"]

{[%evp 15,79,17,31,-12,-17,-10,0,0,0,-13,0,-5,-1,-17,8,8,10,16,20,7,25,6,6,4,5,5,21,0,0,0,0,0,8,0,13,6,10,0,1,0,0,0,0,0,0,0,0,0,0,0,0,0,0,0,0,0,121,0,0,0,114,0,0,0,121,0]} 1. d4 {[%emt 0:02:18]} Nf6 {[%emt 0:00:15]} 2. c4 {[%emt 0:00:06]} e6 {[%emt 0:00:12]} 3. Nc3 {[%emt 0:01:09]} Bb4 {[%emt 0:00:18]} 4. Qc2 {[%emt 0:00:26]} O-O {[%emt 0:00:33]} 5. a3 {[%emt 0:00:19]} Bxc3+ {[%emt 0:00:44]} 6. Qxc3 {[%emt 0:00:03]} d5 {[%emt 0:00:20]} 7. Nf3 {[%emt 0:00:59]} dxc4 {[%emt 0:00:53]} 8. Qxc4 {[%emt 0:03:12]} b6 {[%emt 0:00:36]} 9. g3 {[%emt 0:01:01] E36: Nimzo-Indian: Classical: 4...d5 5 a3.} Ba6 {[%emt 0:02:30] 9...Bb7 is vanishing.} 10. Qc2 {[%emt 0:02:28]} Nbd7 {[%emt 0:03:15][%cal Bb8d7,Bd7c5,Bc5e4][%mdl 32] 10...Bb7 is vanishing.} 11. Bg2 {[%emt 0:05:50] The position is equal.} c5 {[%emt 0:02:32]} 12. dxc5 {[%emt 0:33:03] [#]} Nxc5 $146 {[%emt 0:04:00]} ({Predecessor:} 12... bxc5 13. O-O Qb6 14. Rd1 Bb7 15. Bd2 Be4 16. Qc1 Rab8 17. Bc3 Nd5 18. Rd2 Rfd8 {½-½ (25) Van Foreest,J (2153)-Sachdev,T (2419) Hoogeveen 2011}) 13. b4 {[%emt 0:14:01]} Nce4 {[%emt 0:05:01] Threatening ...Rc8. Pair of Knights!} 14. Bb2 {[%emt 0:00:31]} Qe8 {[%emt 0:04:00]} (14... Rc8 {is more complex.} 15. Qa4 Bc4 16. Rd1 Qc7) 15. Bxf6 {[%emt 0:06:24]} Nxf6 {[%emt 0:01:53]} 16. O-O {[%emt 0:00:04]} Rc8 {[%emt 0:01:15]} 17. Qb2 {[%emt 0:00:14]} Qa4 {[%emt 0:10:52]} 18. Rac1 {[%emt 0:02:29] Inhibits Rc2.} Bb7 {[%emt 0:02:16]} 19. Nd4 {[%emt 0:04:16]} Bxg2 {[%emt 0:00:32]} 20. Kxg2 {[%emt 0:00:07]} Qd7 {[%emt 0:01:46]} 21. Rxc8 {[%emt 0:04:28]} Rxc8 {[%emt 0:00:10]} 22. Rc1 {[%emt 0:00:45]} Rxc1 {[%emt 0:05:56]} 23. Qxc1 $11 {[%emt 0:00:01][%mdl 4096] Endgame KQN-KQN} h5 {[%emt 0:00:17]} 24. Qc4 {[%emt 0:01:40]} a6 {[%emt 0:06:25]} 25. Nf3 {[%emt 0:02:10]} a5 {[%emt 0:07:10]} 26. bxa5 {[%emt 0:01:25]} bxa5 {[%emt 0:00:10]} 27. a4 {[%emt 0:00:46]} Qb7 {[%emt 0:01:42]} 28. Qc5 {[%emt 0:02:49]} Qd5 {[%emt 0:03:40]} 29. Qc8+ {[%emt 0:01:35]} Kh7 {[%emt 0:00:12]} 30. Qc7 {[%emt 0:00:21]} Kg8 {[%emt 0:01:39]} 31. Qc8+ {[%emt 0:00:13]} Kh7 {[%emt 0:00:08]} 32. Qc7 {[%emt 0:00:02]} Kg8 {[%emt 0:00:38]} 33. h3 {[%emt 0:03:41]} Ne4 {[%emt 0:02:01]} 34. Qb8+ {[%emt 0:04:43]} Kh7 {[%emt 0:00:34] aiming for ...Qc5.} 35. Qe5 {[%emt 0:03:00]} Nc5 {[%emt 0:02:40]} (35... Qxe5 $11 36. Nxe5 Nc3) 36. Qc3 {[%emt 0:00:23]} Ne4 {[%emt 0:08:18]} 37. Qe5 {[%emt 0:00:02]} Nc5 {[%emt 0:03:43] [#]} 38. Qc3 {[%emt 0:00:03]} (38. Qc7 $1 $16) 38... Ne4 {[%emt 0:01:17]} 39. Qe5 {[%emt 0:01:30]} Nc5 {[%emt 0:01:11] [#]} (39... Qxe5 $11 {remains equal.} 40. Nxe5 Nc3) 40. Qc3 {[%emt 0:00:11] Weighted Error Value: White=0.14 (very precise) /Black=0.17 (very precise)} ({Only move:} 40. Qc7 $1 $16) 1/2-1/2